bitfinex/quotes_SOLUSD_20220226
["timestamp","ask_amount","ask_price","bid_price","bid_amount"]
[1645919061417,1.454017,89.781,89.69,16.7276]
[1645919061720,1.56520994,89.79,89.71,16.7202]
[1645919061917,1.83323163,89.799,89.711,28.1902]
[1645919062118,1.83323163,89.799,89.711,30.93698921]
[1645919062720,1.83323163,89.799,89.73,16.7194]
[1645919062919,16.03,89.82,89.731,22.6609]
[1645919063122,1.66840932,89.819,89.732,22.9759]
[1645919064621,1.87285039,89.81,89.74,16.7167]
[1645919064821,1.84146397,89.819,89.74,16.7167]
[1645919065028,21.51235977,89.826,89.74,16.7167]
[1645919065221,1.60545678,89.819,89.74,16.7167]
[1645919066421,1.60545678,89.819,89.741,4.455]
[1645919066622,1.60545678,89.819,89.75,16.7153]
[1645919066826,1.60545678,89.819,89.751,24.7693]
[1645919067022,24.6176,89.828,89.751,24.7693]
[1645919067225,1.67264155,89.839,89.752,4.454]
[1645919067422,1.71063219,89.848,89.752,4.454]
[1645919067622,1.71063219,89.848,89.752,114.454]
[1645919067822,1.71063219,89.848,89.753,2.74678921]
[1645919068023,1.71063219,89.848,89.754,4.454]
[1645919068227,16.03,89.85,89.754,4.454]
[1645919068424,1.78976156,89.859,89.761,112.50180281]
[1645919068625,1.71408812,89.868,89.762,4.453]
[1645919068826,1.47922961,89.867,89.764,2.40310242]
[1645919069023,1.47922961,89.867,89.765,4.453]
[1645919069425,1.47922961,89.867,89.79,16.7069]
[1645919070226,1.47922961,89.867,89.791,24.1438]
[1645919070426,1.47922961,89.867,89.8,16.7066]
[1645919070626,1.83399622,89.882,89.8,24.2866]
[1645919070829,1.40669584,89.888,89.8,24.2866]
[1645919071231,1.40669584,89.888,89.801,4.452]
[1645919071431,1.40669584,89.888,89.82,16.7005]
[1645919071627,1.81759778,89.899,89.821,22.7157]
[1645919071827,16.701,89.9,89.821,22.7157]
[1645919072031,1.42069319,89.908,89.821,22.7157]
[1645919072229,1.64396694,89.919,89.822,28.0605]
[1645919072628,19.86569311,89.918,89.822,28.0605]
[1645919072830,5.93657072,89.917,89.822,23.6105]
[1645919073229,19.86569311,89.916,89.822,23.6105]
[1645919073436,6.11016593,89.915,89.822,23.6105]
[1645919073630,1.66782332,89.909,89.83,16.7002]
[1645919074234,21.53351643,89.909,89.83,16.7002]
[1645919074431,21.53351643,89.909,89.822,23.6105]
[1645919074432,1.74788091,89.908,89.822,23.6105]
[1645919074634,16.7017,89.9,89.822,23.6105]
[1645919074831,1.51176309,89.899,89.822,23.6105]
[1645919075031,4.45,89.898,89.822,23.6105]
[1645919075231,110.0,89.897,89.782,4.45]
[1645919075432,55.6939,89.89,89.771,48.74]
[1645919075632,32.7365,89.88,89.771,48.74]
[1645919075831,31.25631354,89.879,89.771,48.74]
[1645919076032,1.47976635,89.878,89.771,48.74]
[1645919076232,4.453,89.877,89.771,48.74]
[1645919076632,1.70997175,89.876,89.771,48.74]
[1645919076832,4.453,89.875,89.771,48.74]
[1645919077131,110.0,89.872,89.771,48.74]
[1645919077334,1.51585024,89.849,89.757,4.453]
[1645919077531,1.51585024,89.849,89.71,16.03]
[1645919077532,16.03,89.84,89.711,4.454]
[1645919077733,1.85911861,89.839,89.712,23.4994]
[1645919077934,1.85911861,89.839,89.713,4.455]
[1645919078133,1.36731175,89.838,89.713,4.455]
[1645919078334,1.42783254,89.837,89.713,4.455]
[1645919078534,1.36791302,89.829,89.73,16.7186]
[1645919078734,1.42835082,89.819,89.73,16.7186]
[1645919078935,1.42835082,89.819,89.731,48.4761]
[1645919079537,1.42835082,89.819,89.732,4.455]
[1645919079737,1.42835082,89.819,89.74,16.7166]
[1645919081137,1.42835082,89.819,89.741,4.455]
[1645919081438,16.03,89.82,89.75,16.7146]
[1645919081636,16.7138,89.83,89.751,110.0]
[1645919081836,1.60521291,89.847,89.753,110.0]
[1645919082036,1.49352833,89.857,89.754,23.428]
[1645919082439,1.53360948,89.856,89.755,4.454]
[1645919082641,27.79616925,89.856,89.755,4.454]
[1645919082840,1.63470736,89.855,89.755,4.454]
[1645919083038,1.58695312,89.854,89.755,4.454]
[1645919083238,1.75387424,89.849,89.755,4.454]
[1645919083438,4.454,89.848,89.754,23.428]
[1645919083640,1.76202962,89.839,89.76,16.7118]
[1645919085540,16.7142,89.83,89.76,16.7118]
[1645919085741,1.4752844,89.829,89.76,16.7118]
[1645919086341,1.4752844,89.829,89.754,23.428]
[1645919095651,1.4752844,89.829,89.76,16.7135]
[1645919097855,4.454,89.849,89.76,23.0635]
[1645919098056,1.43145131,89.855,89.761,136.68648921]
[1645919098256,1.39184957,89.869,89.78,16.7062]
[1645919098455,1.39184957,89.869,89.781,24.3699]
[1645919099455,1.39184957,89.869,89.8,16.7042]
[1645919099657,1.39184957,89.869,89.801,24.34]
[1645919101776,1.39184957,89.869,89.81,16.7041]
[1645919101977,1.38536973,89.897,89.81,16.7041]
[1645919102378,26.0775295,89.897,89.81,16.7041]
[1645919102577,1.43203072,89.896,89.81,16.7041]
[1645919103579,1.40513998,89.889,89.81,16.7041]
[1645919104578,1.40513998,89.889,89.8,16.7064]
[1645919104579,16.7034,89.88,89.8,16.7064]
[1645919104783,16.03,89.87,89.762,46.4772]
[1645919104983,1.49998363,89.868,89.762,46.4772]
[1645919105179,4.453,89.867,89.762,46.4772]
[1645919105383,1.49998363,89.868,89.762,46.4772]
[1645919105581,16.7098,89.85,89.762,46.4772]
[1645919105881,1.38146755,89.849,89.762,46.4772]
[1645919106081,1.55904316,89.848,89.76,16.713]
[1645919106280,1.55904316,89.848,89.741,4.454]
[1645919106281,4.454,89.847,89.741,4.454]
[1645919106480,30.63031269,89.847,89.741,4.454]
[1645919106681,16.7137,89.83,89.722,46.4428]
[1645919106980,16.7137,89.83,89.7,16.03]
[1645919106981,1.74730619,89.818,89.671,46.4428]
[1645919107180,1.65379969,89.808,89.671,46.4428]
[1645919107380,1.65379969,89.808,89.657,17.0827]
[1645919107381,111.83181904,89.799,89.657,17.0827]
[1645919107580,111.37715144,89.789,89.652,32.2686588]
[1645919107781,110.0,89.779,89.658,24.54771134]
[1645919107982,16.7305,89.75,89.67,16.7285]
[1645919108180,1.36269416,89.749,89.67,16.7285]
[1645919109987,1.49838566,89.768,89.671,110.0]
[1645919110187,1.54003484,89.769,89.67,16.7285]
[1645919110988,4.458,89.768,89.67,16.7285]
[1645919111388,4.458,89.768,89.671,49.0809]
[1645919111589,1.79374658,89.749,89.671,49.0809]
[1645919111787,1.79374658,89.749,89.68,16.7269]
[1645919112891,16.7287,89.74,89.663,7.68]
[1645919113093,1.53489308,89.739,89.663,7.68]
[1645919113292,1.53489308,89.739,89.625,2.54060121]
[1645919113490,29.29721856,89.738,89.625,2.54060121]
[1645919113691,1.4155778,89.737,89.626,4.46]
[1645919113891,1.4155778,89.737,89.626,29.05974517]
[1645919114190,1.4155778,89.737,89.627,24.59974517]
[1645919114390,29.29721856,89.736,89.628,4.46]
[1645919114591,16.7323,89.72,89.65,16.7326]
[1645919114795,1.38314165,89.719,89.651,4.46]
[1645919115692,1.38314165,89.719,89.65,16.7326]
[1645919115890,16.734,89.71,89.641,28.3157]
[1645919116091,1.5829895,89.709,89.641,23.8557]
[1645919116893,1.57154418,89.729,89.65,16.7326]
[1645919117094,1.57154418,89.729,89.642,10.92107352]
[1645919117294,1.75084404,89.707,89.642,10.92107352]
[1645919117693,1.71858292,89.719,89.642,10.92107352]
[1645919118593,16.7354,89.71,89.642,10.92107352]
[1645919119594,29.66473532,89.718,89.642,10.92107352]
[1645919120298,29.66473532,89.718,89.641,10.92107352]
[1645919120497,1.63094608,89.717,89.641,10.92107352]
[1645919121297,1.63094608,89.717,89.642,4.46]
[1645919121496,1.63094608,89.717,89.65,16.7323]
[1645919122298,27.29006865,89.733,89.65,16.7323]
[1645919122498,27.29006865,89.733,89.66,16.7292]
[1645919122702,16.7311,89.74,89.66,16.7292]
[1645919122898,94.52552524,89.77,89.661,4.458]
[1645919122899,1.82884183,89.739,89.661,4.458]
[1645919123099,1.36594558,89.748,89.662,49.0558]
[1645919123298,1.36594558,89.748,89.663,4.458]
[1645919124499,1.36594558,89.748,89.67,16.7268]
[1645919124702,16.7275,89.76,89.671,4.458]
[1645919125101,16.7275,89.76,89.664,6.94324141]
[1645919125501,1.62652273,89.759,89.67,16.7269]
[1645919125701,16.7282,89.75,89.671,4.458]
[1645919125900,1.7983373,89.749,89.67,16.7269]
[1645919126902,1.7983373,89.749,89.671,10.92107352]
[1645919127123,1.7983373,89.749,89.672,4.458]
[1645919127303,16.7282,89.75,89.68,16.7269]
[1645919127602,1.69055979,89.779,89.681,3.02711832]
[1645919127803,1.77916076,89.786,89.682,7.19042475]
[1645919128004,1.77916076,89.786,89.683,112.35692121]
[1645919128304,1.77916076,89.786,89.684,4.457]
[1645919129506,1.45572777,89.779,89.7,16.7215]
[1645919130307,1.45572777,89.779,89.701,23.7635]
[1645919131508,1.45572777,89.779,89.71,16.7212]
[1645919132510,1.45572777,89.779,89.711,10.92107352]
[1645919133111,1.45572777,89.779,89.72,16.7199]
[1645919133315,1.47859785,89.797,89.72,16.7199]
[1645919134514,1.35160908,89.811,89.72,16.7199]
[1645919134913,1.35160908,89.811,89.74,16.7143]
[1645919135113,1.7218372,89.825,89.74,16.7143]
[1645919135315,1.7218372,89.825,89.741,47.4963]
[1645919135515,16.7147,89.82,89.741,47.4963]
[1645919135913,16.7147,89.82,89.741,58.41737352]
[1645919136517,16.7147,89.82,89.75,16.7135]
[1645919137816,1.7218372,89.825,89.75,16.7135]
[1645919138718,1.7218372,89.825,89.76,16.7114]
[1645919138919,11.39156528,89.831,89.76,16.7114]
[1645919139718,22.47292524,89.852,89.76,16.7114]
[1645919140524,1.49641711,89.851,89.76,16.7114]
[1645919141120,22.47292524,89.85,89.76,16.7114]
[1645919141520,39.18162524,89.85,89.76,16.7114]
[1645919141722,39.18162524,89.85,89.761,10.92107352]
[1645919141921,22.47292524,89.849,89.78,16.708]
[1645919142543,16.7104,89.84,89.761,10.92107352]
[1645919142745,1.83215834,89.839,89.761,10.92107352]
[1645919143350,16.7104,89.84,89.761,10.92107352]
[1645919143548,22.47292524,89.849,89.77,16.7109]
[1645919143748,1.43467768,89.848,89.771,22.7905]
[1645919145048,1.43467768,89.848,89.772,10.92107352]
[1645919145453,1.58082635,89.846,89.78,16.7085]
[1645919145951,16.7101,89.84,89.773,23.7909]
[1645919147554,18.37473152,89.84,89.773,23.7909]
[1645919147953,1.77836984,89.839,89.773,23.7909]
[1645919148554,16.7101,89.84,89.774,10.92107352]
[1645919148957,16.7069,89.85,89.774,10.92107352]
[1645919149156,22.4613119,89.861,89.774,10.92107352]
[1645919149362,1.85190286,89.86,89.774,10.92107352]
[1645919149559,1.85190286,89.86,89.775,110.0]
[1645919149758,1.85190286,89.86,89.774,10.92107352]
[1645919149958,22.4613119,89.859,89.774,10.92107352]
[1645919150160,16.7077,89.85,89.774,10.92107352]
[1645919150360,1.69907922,89.849,89.774,10.92107352]
[1645919152460,16.7088,89.84,89.774,10.92107352]
[1645919152661,1.65811124,89.839,89.774,10.92107352]
[1645919152860,1.36686478,89.839,89.774,10.92107352]
[1645919153261,22.4613119,89.859,89.774,10.92107352]
[1645919153461,1.82445208,89.857,89.774,17.46107352]
[1645919154065,16.7071,89.85,89.774,17.46107352]
[1645919154964,1.44292996,89.874,89.774,146.81287233]
[1645919155171,16.7032,89.87,89.781,112.43733929]
[1645919155365,1.44292996,89.874,89.782,3.1151546]
[1645919155565,1.44292996,89.874,89.784,110.0]
[1645919156166,16.702,89.88,89.8,16.7015]
[1645919156367,16.702,89.88,89.801,24.463]
[1645919156567,16.702,89.88,89.802,110.0]
[1645919156966,16.702,89.88,89.801,24.463]
[1645919157468,16.702,89.88,89.802,110.0]
[1645919157666,16.702,89.88,89.801,24.463]
[1645919157867,16.702,89.88,89.801,27.49287799]
[1645919158068,16.702,89.88,89.81,16.7011]
[1645919159169,1.67468855,89.879,89.802,24.332]
[1645919159675,1.6109255,89.869,89.804,10.92107352]
[1645919160070,1.40182814,89.878,89.804,10.92107352]
[1645919160370,5.85382814,89.878,89.804,10.92107352]
[1645919160568,16.03,89.89,89.804,10.92107352]
[1645919160569,1.5031114,89.876,89.804,10.92107352]
[1645919160990,16.7076,89.85,89.804,10.92107352]
[1645919161597,55.6918,89.87,89.804,10.92107352]
[1645919161791,1.79213684,89.869,89.804,10.92107352]
[1645919161992,16.7048,89.86,89.804,10.92107352]
[1645919162195,1.38719043,89.859,89.804,10.92107352]
[1645919162595,55.6966,89.86,89.804,10.92107352]
[1645919162800,1.55963248,89.859,89.804,10.92107352]
[1645919163194,16.7079,89.85,89.803,10.92107352]
[1645919163394,1.76370955,89.849,89.803,10.92107352]
[1645919163595,1.45699387,89.849,89.803,10.92107352]
[1645919164195,16.708,89.84,89.803,10.92107352]
[1645919164597,1.51146918,89.839,89.803,10.92107352]
[1645919165095,1.73468278,89.859,89.803,10.92107352]
[1645919165295,16.7126,89.83,89.803,10.92107352]
[1645919165496,1.60373653,89.829,89.803,10.92107352]
[1645919165796,1.60373653,89.829,89.773,10.92107352]
[1645919165995,4.453,89.864,89.773,10.92107352]
[1645919165996,1.4022034,89.858,89.773,10.92107352]
[1645919166197,1.4022034,89.858,89.774,110.0]
[1645919166397,16.7065,89.85,89.773,16.25107352]
[1645919166997,1.42874701,89.849,89.773,16.25107352]
[1645919167200,1.42874701,89.849,89.773,10.92107352]
[1645919167401,1.79955399,89.858,89.773,10.92107352]
[1645919167799,21.2341119,89.857,89.773,10.92107352]
[1645919167999,1.75654304,89.856,89.773,10.92107352]
[1645919168600,1.84001039,89.829,89.773,10.92107352]
[1645919169599,16.7115,89.83,89.773,10.92107352]
[1645919169801,16.7115,89.83,89.773,17.78107352]
[1645919172103,16.7115,89.83,89.774,110.0]
[1645919172305,1.64021374,89.858,89.78,16.7081]
[1645919172508,24.3818,89.869,89.781,110.0]
[1645919172703,1.58347516,89.868,89.782,4.453]
[1645919173107,1.83344206,89.883,89.781,110.0]
[1645919173306,1.42307793,89.897,89.782,4.452]
[1645919173506,16.7008,89.88,89.801,110.0]
[1645919173706,16.7008,89.88,89.803,110.0]
[1645919173707,1.50508812,89.879,89.803,110.0]
[1645919173905,1.50508812,89.879,89.804,4.452]
[1645919174507,1.50508812,89.879,89.81,16.7015]
[1645919174706,1.50508812,89.879,89.811,4.452]
[1645919175109,16.7023,89.87,89.811,4.452]
[1645919175306,16.7023,89.87,89.81,16.7015]
[1645919175707,16.7023,89.87,89.811,10.92107352]
[1645919176206,18.49123968,89.87,89.811,10.92107352]
[1645919176607,16.7023,89.87,89.811,10.92107352]
[1645919176806,18.49617284,89.87,89.811,10.92107352]
[1645919177609,16.7023,89.87,89.811,10.92107352]
[1645919178008,16.7023,89.87,89.82,16.7011]
[1645919178207,16.7023,89.87,89.82,22.6811]
[1645919179308,16.7023,89.87,89.821,10.92107352]
[1645919180509,1.65653598,89.869,89.821,10.92107352]
[1645919180910,16.7023,89.87,89.821,10.92107352]
[1645919182110,16.7023,89.87,89.812,10.92107352]
[1645919182410,16.708,89.86,89.812,10.89319076]
[1645919182713,1.74159318,89.859,89.812,10.89319076]
[1645919183109,1.46845396,89.868,89.812,10.89319076]
[1645919183510,1.3899779,89.859,89.812,10.89319076]
[1645919184513,16.7075,89.85,89.812,10.89319076]
[1645919184714,1.78811071,89.849,89.812,10.89319076]
[1645919185114,1.84865631,89.859,89.803,10.89319076]
[1645919185515,16.7075,89.84,89.803,10.89319076]
[1645919185716,1.81449662,89.839,89.803,10.89319076]
[1645919185915,1.48227995,89.859,89.803,10.89319076]
[1645919186116,6.04215644,89.879,89.803,10.89319076]
[1645919186516,1.59015644,89.879,89.803,10.89319076]
[1645919187116,16.7053,89.86,89.803,10.89319076]
[1645919187415,1.67429806,89.887,89.803,10.89319076]
[1645919187616,1.67429806,89.887,89.804,114.452]
[1645919187918,1.67429806,89.887,89.804,4.452]
[1645919188315,1.67429806,89.887,89.805,10.89319076]
[1645919188517,16.7007,89.88,89.81,16.7035]
[1645919188716,1.53206331,89.879,89.81,16.7035]
[1645919188919,1.53206331,89.879,89.811,4.452]
[1645919189319,16.7007,89.88,89.806,4.452]
[1645919189518,16.6988,89.89,89.82,16.7008]
[1645919189718,16.6988,89.89,89.821,27.0967]
[1645919189920,16.6988,89.89,89.822,110.0]
[1645919190119,16.6988,89.89,89.823,4.45]
[1645919191420,16.6988,89.89,89.824,10.89319076]
[1645919191622,16.6988,89.89,89.84,16.6979]
[1645919192320,1.57918294,89.889,89.825,4.45]
[1645919192522,1.57918294,89.889,89.83,16.6996]
[1645919193124,16.6988,89.89,89.83,16.6996]
[1645919194427,16.6988,89.89,89.831,10.89319076]
[1645919194649,16.6988,89.89,89.84,16.6978]
[1645919195027,1.43352878,89.889,89.831,10.89319076]
[1645919195229,16.6999,89.88,89.831,10.89319076]
[1645919195428,1.35531706,89.879,89.831,10.89319076]
[1645919199331,1.35531706,89.879,89.826,10.89319076]
[1645919201330,1.51820566,89.869,89.826,10.89319076]
[1645919203447,18.27542664,89.88,89.83,16.7004]
[1645919203638,1.76013815,89.879,89.83,16.7004]
[1645919203836,1.76013815,89.879,89.826,10.89319076]
[1645919204036,1.79812201,89.889,89.831,10.89319076]
[1645919205036,16.7017,89.87,89.831,10.89319076]
[1645919205240,1.82222208,89.869,89.831,10.89319076]
[1645919205638,6.54,89.87,89.831,10.89319076]
[1645919206137,1.5405245,89.859,89.831,10.89319076]
[1645919207240,16.7051,89.85,89.803,10.89319076]
[1645919208139,18.3312496,89.85,89.803,10.89319076]
[1645919208740,16.7051,89.85,89.803,10.89319076]
[1645919208939,16.7051,89.85,89.81,16.7042]
[1645919210063,16.7041,89.86,89.81,16.7042]
[1645919210263,1.73465365,89.859,89.803,10.89319076]
[1645919210461,1.73465365,89.859,89.8,16.7054]
[1645919210462,1.73465365,89.859,89.811,10.89319076]
[1645919210662,1.51672811,89.869,89.811,10.89319076]
[1645919211062,16.7058,89.85,89.811,10.89319076]
[1645919211463,1.45766891,89.868,89.811,10.89319076]
[1645919212464,1.51520233,89.884,89.82,16.7025]
[1645919213168,1.51520233,89.884,89.821,23.1212]
[1645919213365,1.51520233,89.884,89.83,16.7003]
[1645919213564,1.78722029,89.899,89.83,16.7003]
[1645919213766,1.59709951,89.909,89.83,16.7003]
[1645919214464,16.6982,89.89,89.83,16.7003]
[1645919215969,16.6982,89.89,89.831,110.0]
[1645919216168,16.6965,89.9,89.841,110.0]
[1645919216368,16.6965,89.9,89.843,110.0]
[1645919217467,16.6965,89.9,89.85,16.6961]
[1645919220072,16.6965,89.9,89.851,10.89319076]
[1645919226580,16.66001135,89.9,89.851,10.89319076]
[1645919227382,16.66001135,89.9,89.86,16.6958]
[1645919227583,16.6942,89.91,89.86,16.6958]
[1645919228785,16.6926,89.92,89.86,16.6958]
[1645919228988,16.6926,89.92,89.861,28.92]
[1645919229185,16.6926,89.92,89.87,16.6921]
[1645919231188,16.6926,89.92,89.88,16.6918]
[1645919234399,16.6909,89.93,89.88,16.6918]
[1645919234702,1.63146442,89.941,89.881,10.89319076]
[1645919234900,24.4387,89.948,89.9,16.6868]
[1645919235098,18.58181896,89.954,89.9,16.6868]
[1645919236515,16.6872,89.95,89.9,16.6868]
[1645919238018,16.6872,89.95,89.901,10.89319076]
[1645919238219,16.6872,89.95,89.91,16.6862]
[1645919239018,16.6872,89.95,89.901,10.89319076]
[1645919239220,1.50997973,89.949,89.901,10.89319076]
[1645919239419,16.6905,89.94,89.901,10.89319076]
[1645919240520,1.67635182,89.939,89.901,10.89319076]
[1645919240719,16.6904,89.93,89.901,10.89319076]
[1645919241123,1.5390488,89.929,89.891,10.89319076]
[1645919241519,1.85071014,89.939,89.891,10.89319076]
[1645919241720,16.6928,89.92,89.891,10.89319076]
[1645919244726,16.6928,89.92,89.871,10.89319076]
[1645919246827,16.6928,89.92,89.88,16.6926]
[1645919247831,16.6928,89.92,89.881,10.89319076]
[1645919251040,16.6928,89.92,89.871,10.89319076]
[1645919253744,16.6928,89.92,89.88,16.6927]
[1645919257248,16.6928,89.92,89.881,10.89319076]
[1645919261849,16.6906,89.93,89.881,10.89319076]
[1645919262049,1.56287294,89.949,89.89,16.691]
[1645919262275,21.2218919,89.965,89.89,16.691]
[1645919262874,16.6872,89.95,89.891,23.419]
[1645919263073,16.6872,89.95,89.9,16.6871]
[1645919264073,1.74730132,89.949,89.891,34.31219076]
[1645919264275,16.6916,89.94,89.891,34.31219076]
[1645919266175,1.57966302,89.939,89.891,10.89319076]
[1645919266577,16.6939,89.93,89.865,35.13659076]
[1645919266776,1.57994919,89.929,89.865,35.13659076]
[1645919267178,1.53971441,89.939,89.865,35.13659076]
[1645919268479,16.693,89.92,89.87,16.6935]
[1645919268679,1.53971441,89.939,89.87,16.6935]
[1645919269479,16.6913,89.93,89.87,16.6935]
[1645919269678,16.6913,89.93,89.871,10.89319076]
[1645919269881,16.6913,89.93,89.88,16.6912]
[1645919271382,1.77408157,89.958,89.88,16.6912]
[1645919271582,25.32478157,89.958,89.881,23.5757]
[1645919271779,25.32478157,89.958,89.9,16.687]
[1645919271979,25.32478157,89.958,89.901,23.5852]
[1645919272680,25.32478157,89.958,89.902,10.89319076]
[1645919273482,16.6879,89.95,89.91,16.6872]
[1645919275383,16.1879,89.95,89.91,16.6872]
[1645919275783,16.1879,89.95,89.911,10.89319076]
[1645919276884,16.1879,89.95,89.911,10.77288876]
[1645919278485,23.5507,89.958,89.92,16.686]
[1645919278683,16.6854,89.96,89.92,16.686]
[1645919279084,16.6854,89.96,89.921,10.77288876]
[1645919280089,16.6854,89.96,89.921,19.14288876]
[1645919286496,16.6854,89.96,89.921,10.77288876]
[1645919287998,24.5851,89.978,89.93,16.6838]
[1645919287999,16.6838,89.97,89.93,16.6838]
[1645919288599,4.446,89.994,89.93,23.4038]
[1645919288800,5.04705269,90.014,89.93,23.4038]
[1645919288801,1.59900338,90.008,89.93,23.4038]
[1645919289200,0.50454688,90.004,89.93,23.4038]
[1645919289900,16.6806,89.99,89.93,23.4038]
[1645919290502,16.6806,89.99,89.94,16.6796]
[1645919290700,16.6806,89.99,89.941,23.6804]
[1645919291600,16.6788,90.0,89.95,16.6796]
[1645919292803,17.18334688,90.0,89.95,16.6796]
[1645919294608,16.6788,90.0,89.95,16.6796]
[1645919295607,1.55633417,90.007,89.95,16.6796]
[1645919295808,1.55633417,90.007,89.951,10.77288876]
[1645919296028,16.6772,90.01,89.96,16.6765]
[1645919296227,25.39404114,90.029,89.96,16.6765]
[1645919296527,36.78560642,90.029,89.96,16.6765]
[1645919297129,1.45304006,90.028,89.96,16.6765]
[1645919297329,16.6754,90.02,89.97,16.675]
[1645919297529,1.45304006,90.028,89.971,22.5623]
[1645919297828,4.444,90.038,89.971,22.5623]
[1645919298029,4.444,90.047,89.971,22.5623]
[1645919298231,5.90503241,90.047,89.972,10.77288876]
[1645919298429,25.48025765,90.047,89.972,10.77288876]
[1645919298631,21.09344993,90.046,89.972,10.77288876]
[1645919298831,6.17785974,90.045,89.972,10.77288876]
[1645919299030,25.75308498,90.045,89.972,10.77288876]
[1645919299231,1.73256046,90.044,89.972,10.77288876]
[1645919299431,4.444,90.043,89.972,10.77288876]
[1645919299631,16.6737,90.03,89.98,16.6737]
[1645919300032,5.9405262,90.043,89.98,16.6737]
[1645919300033,4.444,90.043,89.981,110.0]
[1645919300233,23.4002,90.048,89.983,110.0]
[1645919300437,19.57522524,90.057,89.983,110.0]
[1645919300935,1.54814648,90.056,89.983,110.0]
[1645919301437,1.54814648,90.056,89.984,120.77288876]
[1645919301735,16.6706,90.05,89.99,16.6709]
[1645919302336,1.54814648,90.056,89.99,16.6709]
[1645919302535,1.45587369,90.063,89.991,110.0]
[1645919302734,16.6686,90.06,90.01,16.6681]
[1645919302935,16.6686,90.06,90.011,23.2177]
[1645919303639,24.2886,90.064,90.011,23.2177]
[1645919303838,24.2886,90.064,90.02,16.6665]
[1645919304235,16.6669,90.07,90.02,16.6665]
[1645919304436,1.57493923,90.084,90.02,16.6665]
[1645919304437,23.3045,90.083,90.02,16.6665]
[1645919304839,1.49634215,90.082,90.02,16.6665]
[1645919305035,1.49634215,90.082,90.011,23.2177]
[1645919305036,16.6653,90.08,90.011,23.2177]
[1645919305238,1.60124812,90.079,90.011,23.2177]
[1645919305439,1.60124812,90.079,90.021,10.77288876]
[1645919305639,24.01622524,90.078,90.021,10.77288876]
[1645919305837,1.86786618,90.077,90.021,10.77288876]
[1645919306038,21.44309142,90.077,90.021,10.77288876]
[1645919306240,6.15087028,90.076,90.021,10.77288876]
[1645919306437,24.01722524,90.076,90.021,10.77288876]
[1645919306737,1.80349025,90.069,90.021,10.77288876]
[1645919306937,4.442,90.068,90.021,10.77288876]
[1645919307138,1.76274116,90.067,90.021,10.77288876]
[1645919307338,4.442,90.066,90.021,10.77288876]
[1645919307537,5.86664085,90.066,90.021,10.77288876]
[1645919307738,1.66186538,90.065,90.021,10.77288876]
[1645919307938,16.03,90.06,90.021,10.77288876]
[1645919308141,4.442,90.059,89.975,10.77288876]
[1645919308338,1.48718125,90.039,89.975,10.77288876]
[1645919309042,6.06175463,90.049,89.975,10.77288876]
[1645919309642,1.80625667,90.029,89.975,10.77288876]
[1645919310042,1.45376739,90.038,89.975,10.77288876]
[1645919311043,16.6755,90.02,89.975,10.77288876]
[1645919311543,1.45376739,90.038,89.98,16.6737]
[1645919311743,1.45376739,90.038,90.02,0.94158334]
[1645919312344,0.51218405,90.038,89.981,10.77288876]
[1645919312543,16.6737,90.03,89.981,10.77288876]
[1645919312743,16.6549,90.058,89.981,10.77288876]
[1645919312744,0.9519039,90.058,89.99,16.6717]
[1645919313344,22.9518,90.059,89.99,16.6717]
[1645919314744,22.9518,90.059,89.991,23.2621]
[1645919314945,22.9518,90.059,90.0,16.6698]
[1645919315145,16.6703,90.05,90.0,16.6698]
[1645919315344,16.6703,90.05,90.001,10.77288876]
[1645919317747,16.6703,90.05,90.002,24.1547]
[1645919318547,16.6703,90.05,90.003,10.77288876]
[1645919325751,22.9518,90.059,90.003,10.77288876]
[1645919326153,6.10525416,90.058,90.003,10.77288876]
[1645919326452,1.45152412,90.057,90.001,10.77288876]
[1645919326754,30.33567749,90.056,90.001,10.77288876]
[1645919326953,20.0,90.049,89.95,16.6788]
[1645919327160,55.6056,90.03,89.921,46.4068]
[1645919327354,16.03,90.02,89.921,46.4068]
[1645919327553,114.445,90.019,89.921,46.4068]
[1645919327753,1.85328194,90.018,89.885,2.81022659]